Department Family,Entity,Date,Expense Type,Expense Area,Supplier,Supplier Type,Transaction Number,Amount,Description,Expenditure Type
Land Registry,Land Registry,01/08/2013,Birkenhead Office,Rates Payable,Wirral Metrpolitan Borough Council,Large,212922,24021,Rates Payable,Administration
Land Registry,Land Registry,02/08/2013,Central Facilities Management Team,Transport Hire of Cars and Vans,Enterprise Rent-A-Car (UK) Ltd,Large,961928,27772.14,Transport Hire of Cars and Vans,Administration
Land Registry,Land Registry,05/08/2013,Dir: Operations,Legal  Expenses,Flint Bishop LLP,SME,966899,421240.88,Legal  Expenses,Administration
Land Registry,Land Registry,05/08/2013,Weymouth Office,Rates Payable,West Dorset District Council,Large,472844,18487,Rates Payable,Administration
Land Registry,Land Registry,07/08/2013,Nottingham Office,Rent Payable,Dtz Debenham Tie Leung Ltd,SME,801278,9882,Rent Payable,Administration
Land Registry,Land Registry,08/08/2013,IS Service Delivery,Computer Equipment Maintenance,CGI IT UK Limited,Large,962862,86872,Computer Equipment Maintenance,Administration
Land Registry,Land Registry,09/08/2013,Nottingham Office,Rates Payable,Nottingham City Council,Large,212948,40645.14,Rates Payable,Administration
Land Registry,Land Registry,12/08/2013,Finance Director,Employment Agency Staff Costs,Penna Plc,Large,963625,26680,Employment Agency Staff Costs,Administration
Land Registry,Land Registry,12/08/2013,Hull Office,Rates Payable,Kingston Upon Hull City Council,Large,473007,13424,Rates Payable,Administration
Land Registry,Land Registry,13/08/2013,Leicester Office,Stationery National Contracts,Banner Business Services Ltd,Large,963882,1985.31,Stationery National Contracts,Administration
Land Registry,Land Registry,13/08/2013,Durham Office,Stationery National Contracts,Banner Business Services Ltd,Large,963882,4390.71,Stationery National Contracts,Administration
Land Registry,Land Registry,13/08/2013,Fylde Office,Stationery National Contracts,Banner Business Services Ltd,Large,963882,3334.35,Stationery National Contracts,Administration
Land Registry,Land Registry,13/08/2013,Croydon Office,Stationery National Contracts,Banner Business Services Ltd,Large,963882,1254.97,Stationery National Contracts,Administration
Land Registry,Land Registry,13/08/2013,Gloucester Office,Stationery National Contracts,Banner Business Services Ltd,Large,963882,3492.42,Stationery National Contracts,Administration
Land Registry,Land Registry,13/08/2013,Nottingham Office,Stationery National Contracts,Banner Business Services Ltd,Large,963882,2903.04,Stationery National Contracts,Administration
Land Registry,Land Registry,13/08/2013,Central Facilities Management Team,Stationery National Contracts,Banner Business Services Ltd,Large,963882,43.88,Stationery National Contracts,Administration
Land Registry,Land Registry,13/08/2013,Birkenhead Office,Stationery National Contracts,Banner Business Services Ltd,Large,963882,2740.46,Stationery National Contracts,Administration
Land Registry,Land Registry,13/08/2013,Plymouth Office,Stationery National Contracts,Banner Business Services Ltd,Large,963882,2463.9,Stationery National Contracts,Administration
Land Registry,Land Registry,13/08/2013,Weymouth Office,Stationery National Contracts,Banner Business Services Ltd,Large,963882,1980.92,Stationery National Contracts,Administration
Land Registry,Land Registry,13/08/2013,Peterborough Office,Stationery National Contracts,Banner Business Services Ltd,Large,963882,2565.71,Stationery National Contracts,Administration
Land Registry,Land Registry,13/08/2013,Telford Office,Stationery National Contracts,Banner Business Services Ltd,Large,963882,1912.58,Stationery National Contracts,Administration
Land Registry,Land Registry,13/08/2013,Coventry Office,Stationery National Contracts,Banner Business Services Ltd,Large,963882,3973.32,Stationery National Contracts,Administration
Land Registry,Land Registry,13/08/2013,Hull Office,Stationery National Contracts,Banner Business Services Ltd,Large,963882,2664.49,Stationery National Contracts,Administration
Land Registry,Land Registry,13/08/2013,Wales Office,Stationery National Contracts,Banner Business Services Ltd,Large,963882,3912.29,Stationery National Contracts,Administration
Land Registry,Land Registry,13/08/2013,Land Charges,Stationery National Contracts,Banner Business Services Ltd,Large,963882,1136.87,Stationery National Contracts,Administration
Land Registry,Land Registry,13/08/2013,Central Facilities Management Team,Waste Disposal,Banner Business Services Ltd,Large,963882,5965.5,Waste Disposal,Administration
Land Registry,Land Registry,13/08/2013,Corporate Legal Services,Stationery National Contracts,Banner Business Services Ltd,Large,963882,26.55,Stationery National Contracts,Administration
Land Registry,Land Registry,13/08/2013,Property Asset Management Group,Stationery National Contracts,Banner Business Services Ltd,Large,963882,25.55,Stationery National Contracts,Administration
Land Registry,Land Registry,13/08/2013,Guarantee & Litigation,Stationery National Contracts,Banner Business Services Ltd,Large,963882,32.24,Stationery National Contracts,Administration
Land Registry,Land Registry,13/08/2013,IS Service Delivery,Stationery National Contracts,Banner Business Services Ltd,Large,963882,4520.15,Stationery National Contracts,Administration
Land Registry,Land Registry,13/08/2013,Governance & Policy,Stationery National Contracts,Banner Business Services Ltd,Large,963882,259.48,Stationery National Contracts,Administration
Land Registry,Land Registry,13/08/2013,Finance Group,Stationery National Contracts,Banner Business Services Ltd,Large,963882,112.06,Stationery National Contracts,Administration
Land Registry,Land Registry,13/08/2013,Corp Procurement,Stationery National Contracts,Banner Business Services Ltd,Large,963882,14.79,Stationery National Contracts,Administration
Land Registry,Land Registry,13/08/2013,Marketing Services Team,Stationery National Contracts,Banner Business Services Ltd,Large,963882,57.44,Stationery National Contracts,Administration
Land Registry,Land Registry,13/08/2013,HR,Stationery National Contracts,Banner Business Services Ltd,Large,963882,98.04,Stationery National Contracts,Administration
Land Registry,Land Registry,13/08/2013,Strategy Team,Stationery National Contracts,Banner Business Services Ltd,Large,963882,30.29,Stationery National Contracts,Administration
Land Registry,Land Registry,13/08/2013,Chief Executives Office,Stationery National Contracts,Banner Business Services Ltd,Large,963882,81.53,Stationery National Contracts,Administration
Land Registry,Land Registry,13/08/2013,Central Operations Group,Stationery National Contracts,Banner Business Services Ltd,Large,963882,31.87,Stationery National Contracts,Administration
Land Registry,Land Registry,13/08/2013,Internal Solutions Group,Stationery National Contracts,Banner Business Services Ltd,Large,963882,558.14,Stationery National Contracts,Administration
Land Registry,Land Registry,13/08/2013,Central RFS,Stationery National Contracts,Banner Business Services Ltd,Large,963882,781.98,Stationery National Contracts,Administration
Land Registry,Land Registry,13/08/2013,International Unit,Stationery National Contracts,Banner Business Services Ltd,Large,963882,43.35,Stationery National Contracts,Administration
Land Registry,Land Registry,13/08/2013,IS Service Delivery,Computer Equipment Maintenance,IBM United Kingdom Ltd,Large,963885,62250,Computer Equipment Maintenance,Administration
Land Registry,Land Registry,13/08/2013,Dir: Operations,Property Maintenance,Warehouse Storage Solutions Ltd,SME,963903,23385.12,Property Maintenance,Administration
Land Registry,Land Registry,14/08/2013,Forward Scanning,Maps & Plans Data Migration,TNT (UK) Ltd,Large,964089,238663.49,Maps & Plans Data Migration,Administration
Land Registry,Land Registry,15/08/2013,Survey & Mapping Services,Merchandise (Corporate Samples),Ordnance Survey,Large,964265,655181,Merchandise (Corporate Samples),Administration
Land Registry,Land Registry,15/08/2013,Wales Office,Letter Post,Royal Mail,Large,964266,8115.17,Letter Post,Administration
Land Registry,Land Registry,15/08/2013,Durham Office,Letter Post,Royal Mail,Large,964266,9048.27,Letter Post,Administration
Land Registry,Land Registry,15/08/2013,Peterborough Office,Letter Post,Royal Mail,Large,964266,3261.5,Letter Post,Administration
Land Registry,Land Registry,15/08/2013,Fylde Office,Letter Post,Royal Mail,Large,964266,6315.52,Letter Post,Administration
Land Registry,Land Registry,15/08/2013,Croydon Office,Letter Post,Royal Mail,Large,964266,3513.6,Letter Post,Administration
Land Registry,Land Registry,15/08/2013,Gloucester Office,Letter Post,Royal Mail,Large,964266,4566.54,Letter Post,Administration
Land Registry,Land Registry,15/08/2013,Leicester Office,Letter Post,Royal Mail,Large,964266,2746.01,Letter Post,Administration
Land Registry,Land Registry,15/08/2013,Nottingham Office,Letter Post,Royal Mail,Large,964266,5499.64,Letter Post,Administration
Land Registry,Land Registry,15/08/2013,Plymouth Office,Letter Post,Royal Mail,Large,964266,5810.81,Letter Post,Administration
Land Registry,Land Registry,15/08/2013,Weymouth Office,Letter Post,Royal Mail,Large,964266,3226.79,Letter Post,Administration
Land Registry,Land Registry,15/08/2013,Telford Office,Letter Post,Royal Mail,Large,964266,4036.16,Letter Post,Administration
Land Registry,Land Registry,15/08/2013,Coventry Office,Letter Post,Royal Mail,Large,964266,12756.31,Letter Post,Administration
Land Registry,Land Registry,15/08/2013,Hull Office,Letter Post,Royal Mail,Large,964266,3720.17,Letter Post,Administration
Land Registry,Land Registry,15/08/2013,Birkenhead Office,Letter Post,Royal Mail,Large,964266,4964.42,Letter Post,Administration
Land Registry,Land Registry,15/08/2013,Land Charges,Letter Post,Royal Mail,Large,964266,1936.93,Letter Post,Administration
Land Registry,Land Registry,15/08/2013,Central Facilities Management Team,Letter Post,Royal Mail,Large,964266,3400.8,Letter Post,Administration
Land Registry,Land Registry,15/08/2013,IS Service Delivery,Letter Post,Royal Mail,Large,964266,17036.61,Letter Post,Administration
Land Registry,Land Registry,19/08/2013,Central RFS,RFS Outsourced Services,TNT (UK) Ltd,Large,964647,116320.53,File Store Outsourced Services,Administration
Land Registry,Land Registry,19/08/2013,Nottingham Office,Rates Payable,Nottingham City Council,Large,801289,968.6,Rates Payable,Administration
Land Registry,Land Registry,20/08/2013,IS Service Delivery,DITI Impact Change Controls Only,Steria Limited,Large,965167,36505.83,IT Managed Service Change Controls,Administration
Land Registry,Land Registry,20/08/2013,Central RFS,RFS Outsourced Services,TNT (UK) Ltd,Large,965168,183320.82,File Store Outsourced Services,Administration
Land Registry,Land Registry,20/08/2013,Nottingham Office,Rates Payable,Nottingham City Council,Large,473217,40642,Rates Payable,Administration
Land Registry,Land Registry,21/08/2013,Property Asset Management Group,"Property Management; Advice, Surveys & Inspections",EC Harris LLP,SME,965178,54015.64,"Property Management; Advice, Surveys & Inspections",Administration
Land Registry,Land Registry,21/08/2013,Property Asset Management Group,"Property Management; Advice, Surveys & Inspections",EC Harris LLP,SME,965178,37987.71,"Property Management; Advice, Surveys & Inspections",Administration
Land Registry,Land Registry,21/08/2013,Property Asset Management Group,"Property Management; Advice, Surveys & Inspections",EC Harris LLP,SME,965178,-54015.64,"Property Management; Advice, Surveys & Inspections",Administration
Land Registry,Land Registry,23/08/2013,IS Service Delivery,DITI Managed Service,Steria Limited,Large,965830,724999.27,IT Managed Service,Administration
Land Registry,Land Registry,23/08/2013,Central RFS,RFS Outsourced Services,TNT (UK) Ltd,Large,965831,30533.64,File Store Outsourced Services,Administration
Land Registry,Land Registry,23/08/2013,Central RFS,RFS Outsourced Services,TNT (UK) Ltd,Large,965831,29358.65,File Store Outsourced Services,Administration
Land Registry,Land Registry,27/08/2013,Property Asset Management Group,Rates Payable,Stevenage Borough Council,Large,473347,3956,Rates Payable,Administration
Land Registry,Land Registry,27/08/2013,Property Asset Management Group,Rates Payable,Stevenage Borough Council,Large,473347,26376,Rates Payable,Administration
Land Registry,Land Registry,27/08/2013,Gloucester Office,Rates Payable,Gloucester City Council,Large,473341,23432,Rates Payable,Administration
Land Registry,Land Registry,27/08/2013,Governance & Policy,Rates Payable,City of Plymouth,Large,473335,35325,Rates Payable,Administration
Land Registry,Land Registry,27/08/2013,Durham Office,Rates Payable,Durham County Council,Large,473338,22877,Rates Payable,Administration
Land Registry,Land Registry,27/08/2013,Property Asset Management Group,Rates Payable,City of York Council,Large,473336,20724,Rates Payable,Administration
Land Registry,Land Registry,27/08/2013,Coventry Office,Rates Payable,Coventry City Council,Large,473337,43568,Rates Payable,Administration
Land Registry,Land Registry,27/08/2013,Leicester Office,Rates Payable,Leicester City Council,Large,473342,17663,Rates Payable,Administration
Land Registry,Land Registry,27/08/2013,Fylde Office,Rates Payable,Fylde Borough Council,Large,473340,17545,Rates Payable,Administration
Land Registry,Land Registry,27/08/2013,Wales Office,Rates Payable,City & County of Swansea,Large,473334,2100,Rates Payable,Administration
Land Registry,Land Registry,27/08/2013,Wales Office,Rates Payable,City & County of Swansea,Large,473334,16936,Rates Payable,Administration
Land Registry,Land Registry,27/08/2013,Gloucester Computer Centre,Rates Payable,Tewkesbury Borough Council,Large,473348,11257,Rates Payable,Administration
Land Registry,Land Registry,28/08/2013,Gloucester Office,Property Maintenance,Carillion Services Ltd,Large,966277,50217.68,Property Maintenance,Administration
Land Registry,Land Registry,28/08/2013,Peterborough Office,Property Maintenance,Carillion Services Ltd,Large,966277,4811.92,Property Maintenance,Administration
Land Registry,Land Registry,28/08/2013,Coventry Office,Property Maintenance,Carillion Services Ltd,Large,966277,979.05,Property Maintenance,Administration
Land Registry,Land Registry,28/08/2013,Leicester Office,Property Maintenance,Carillion Services Ltd,Large,966277,738.3,Property Maintenance,Administration
Land Registry,Land Registry,28/08/2013,Wales Office,Property Maintenance,Carillion Services Ltd,Large,966277,138984.07,Property Maintenance,Administration
Land Registry,Land Registry,28/08/2013,Nottingham Office,Property Maintenance,Carillion Services Ltd,Large,966277,-4819.95,Property Maintenance,Administration
Land Registry,Land Registry,28/08/2013,Governance & Policy,Property Maintenance,Carillion Services Ltd,Large,966277,7475.68,Property Maintenance,Administration
Land Registry,Land Registry,28/08/2013,Durham Office,FF&F:Maintenance,Carillion Services Ltd,Large,966277,1394,FF&F:Maintenance,Administration
Land Registry,Land Registry,28/08/2013,Birkenhead Office,Office Cleaning Expenses,Carillion Services Ltd,Large,966277,1566.57,Office Cleaning Expenses,Administration
Land Registry,Land Registry,28/08/2013,Croydon Office,Security Expenses,Carillion Services Ltd,Large,966277,1683.71,Security Expenses,Administration
Land Registry,Land Registry,28/08/2013,Croydon Office,FF&F:Maintenance,Carillion Services Ltd,Large,966277,1446.51,FF&F:Maintenance,Administration
Land Registry,Land Registry,28/08/2013,Coventry Office,FF&F:Maintenance,Carillion Services Ltd,Large,966277,751.57,FF&F:Maintenance,Administration
Land Registry,Land Registry,28/08/2013,Weymouth Office,Property Maintenance,Carillion Services Ltd,Large,966277,2208.98,Property Maintenance,Administration
Land Registry,Land Registry,28/08/2013,Wales Office,Security Expenses,Carillion Services Ltd,Large,966277,1724.67,Security Expenses,Administration
Land Registry,Land Registry,28/08/2013,Birkenhead Office,Property Maintenance,Carillion Services Ltd,Large,966277,2809.82,Property Maintenance,Administration
Land Registry,Land Registry,28/08/2013,Durham Office,Security Expenses,Carillion Services Ltd,Large,966277,599.2,Security Expenses,Administration
Land Registry,Land Registry,28/08/2013,Telford Office,Office Cleaning Expenses,Carillion Services Ltd,Large,966277,643.9,Office Cleaning Expenses,Administration
Land Registry,Land Registry,28/08/2013,Wales Office,Waste Disposal,Carillion Services Ltd,Large,966277,1325.99,Waste Disposal,Administration
Land Registry,Land Registry,28/08/2013,Croydon Office,Property Maintenance,Carillion Services Ltd,Large,966277,19310.51,Property Maintenance,Administration
Land Registry,Land Registry,28/08/2013,Croydon Office,Waste Disposal,Carillion Services Ltd,Large,966277,242.36,Waste Disposal,Administration
Land Registry,Land Registry,28/08/2013,Gloucester Office,Waste Disposal,Carillion Services Ltd,Large,966277,774,Waste Disposal,Administration
Land Registry,Land Registry,28/08/2013,Gloucester Office,Security Expenses,Carillion Services Ltd,Large,966277,538.68,Security Expenses,Administration
Land Registry,Land Registry,28/08/2013,Gloucester Office,FF&F:Maintenance,Carillion Services Ltd,Large,966277,24.74,FF&F:Maintenance,Administration
Land Registry,Land Registry,28/08/2013,Leicester Office,FF&F:Maintenance,Carillion Services Ltd,Large,966277,1643.72,FF&F:Maintenance,Administration
Land Registry,Land Registry,28/08/2013,Gloucester Office,Property Maintenance,Carillion Services Ltd,Large,966277,20686.81,Property Maintenance,Administration
Land Registry,Land Registry,28/08/2013,Birkenhead Office,Waste Disposal,Carillion Services Ltd,Large,966277,121.18,Waste Disposal,Administration
Land Registry,Land Registry,28/08/2013,Durham Office,Property Maintenance,Carillion Services Ltd,Large,966277,9605.59,Property Maintenance,Administration
Land Registry,Land Registry,28/08/2013,Durham Office,Office Cleaning Expenses,Carillion Services Ltd,Large,966277,3677.59,Office Cleaning Expenses,Administration
Land Registry,Land Registry,28/08/2013,Durham Office,Waste Disposal,Carillion Services Ltd,Large,966277,216.42,Waste Disposal,Administration
Land Registry,Land Registry,28/08/2013,Weymouth Office,Security Expenses,Carillion Services Ltd,Large,966277,192.6,Security Expenses,Administration
Land Registry,Land Registry,28/08/2013,Weymouth Office,FF&F:Maintenance,Carillion Services Ltd,Large,966277,905.02,FF&F:Maintenance,Administration
Land Registry,Land Registry,28/08/2013,Peterborough Office,Waste Disposal,Carillion Services Ltd,Large,966277,166,Waste Disposal,Administration
Land Registry,Land Registry,28/08/2013,Peterborough Office,Security Expenses,Carillion Services Ltd,Large,966277,598.1,Security Expenses,Administration
Land Registry,Land Registry,28/08/2013,Peterborough Office,FF&F:Maintenance,Carillion Services Ltd,Large,966277,760.56,FF&F:Maintenance,Administration
Land Registry,Land Registry,28/08/2013,Telford Office,Property Maintenance,Carillion Services Ltd,Large,966277,1856.02,Property Maintenance,Administration
Land Registry,Land Registry,28/08/2013,Telford Office,Waste Disposal,Carillion Services Ltd,Large,966277,95.24,Waste Disposal,Administration
Land Registry,Land Registry,28/08/2013,Telford Office,Security Expenses,Carillion Services Ltd,Large,966277,76.53,Security Expenses,Administration
Land Registry,Land Registry,28/08/2013,Coventry Office,Property Maintenance,Carillion Services Ltd,Large,966277,5412.76,Property Maintenance,Administration
Land Registry,Land Registry,28/08/2013,Hull Office,Property Maintenance,Carillion Services Ltd,Large,966277,21796.92,Property Maintenance,Administration
Land Registry,Land Registry,28/08/2013,Hull Office,Office Cleaning Expenses,Carillion Services Ltd,Large,966277,1273,Office Cleaning Expenses,Administration
Land Registry,Land Registry,28/08/2013,Hull Office,Pest Control,Carillion Services Ltd,Large,966277,37.45,Pest Control,Administration
Land Registry,Land Registry,28/08/2013,Hull Office,Security Expenses,Carillion Services Ltd,Large,966277,693.87,Security Expenses,Administration
Land Registry,Land Registry,28/08/2013,Hull Office,FF&F:Maintenance,Carillion Services Ltd,Large,966277,330.74,FF&F:Maintenance,Administration
Land Registry,Land Registry,28/08/2013,Leicester Office,Office Cleaning Expenses,Carillion Services Ltd,Large,966277,417.3,Office Cleaning Expenses,Administration
Land Registry,Land Registry,28/08/2013,Leicester Office,Waste Disposal,Carillion Services Ltd,Large,966277,121.18,Waste Disposal,Administration
Land Registry,Land Registry,28/08/2013,Leicester Office,Security Expenses,Carillion Services Ltd,Large,966277,850.65,Security Expenses,Administration
Land Registry,Land Registry,28/08/2013,Wales Office,Property Maintenance,Carillion Services Ltd,Large,966277,11719.21,Property Maintenance,Administration
Land Registry,Land Registry,28/08/2013,Nottingham Office,Property Maintenance,Carillion Services Ltd,Large,966277,1565.11,Property Maintenance,Administration
Land Registry,Land Registry,28/08/2013,Nottingham Office,Waste Disposal,Carillion Services Ltd,Large,966277,871.86,Waste Disposal,Administration
Land Registry,Land Registry,28/08/2013,Nottingham Office,Security Expenses,Carillion Services Ltd,Large,966277,1875.04,Security Expenses,Administration
Land Registry,Land Registry,28/08/2013,Nottingham Office,FF&F:Maintenance,Carillion Services Ltd,Large,966277,3325.54,FF&F:Maintenance,Administration
Land Registry,Land Registry,28/08/2013,Birkenhead Office,FF&F:Maintenance,Carillion Services Ltd,Large,966277,1428.89,FF&F:Maintenance,Administration
Land Registry,Land Registry,28/08/2013,Fylde Office,Property Maintenance,Carillion Services Ltd,Large,966277,3270.83,Property Maintenance,Administration
Land Registry,Land Registry,28/08/2013,Nottingham Office,Grounds Maintenance,Carillion Services Ltd,Large,966277,2804.26,Grounds Maintenance,Administration
Land Registry,Land Registry,28/08/2013,Gloucester Computer Centre,Property Maintenance,Carillion Services Ltd,Large,966277,2601.91,Property Maintenance,Administration
Land Registry,Land Registry,28/08/2013,RFS15 - Plymouth Drakes Hill Court,Security Expenses,Carillion Services Ltd,Large,966277,28801.13,Security Expenses,Administration
Land Registry,Land Registry,28/08/2013,Peterborough Office,FM Managed Services,Carillion Services Ltd,Large,966277,345.61,Facilities Managed Service,Administration
Land Registry,Land Registry,28/08/2013,Governance & Policy,Office Cleaning Expenses,Carillion Services Ltd,Large,966277,2274.05,Office Cleaning Expenses,Administration
Land Registry,Land Registry,28/08/2013,Governance & Policy,Security Expenses,Carillion Services Ltd,Large,966277,677.42,Security Expenses,Administration
Land Registry,Land Registry,28/08/2013,Governance & Policy,Property Maintenance,Carillion Services Ltd,Large,966277,3370.65,Property Maintenance,Administration
Land Registry,Land Registry,28/08/2013,Dir: Finance,Property Management; Other Fees,Carillion Services Ltd,Large,966277,782.81,Property Management; Other Fees,Administration
Land Registry,Land Registry,28/08/2013,Dir: HR,Office Cleaning Expenses,Carillion Services Ltd,Large,966277,9163.55,Office Cleaning Expenses,Administration
Land Registry,Land Registry,28/08/2013,Dir: HR,Property Management; Other Fees,Carillion Services Ltd,Large,966277,1479.03,Property Management; Other Fees,Administration
Land Registry,Land Registry,28/08/2013,Dir: Operations,Office Cleaning Expenses,Carillion Services Ltd,Large,966277,15592.52,Office Cleaning Expenses,Administration
Land Registry,Land Registry,28/08/2013,Dir: Finance,"Property Management; Advice, Surveys & Inspections",Carillion Services Ltd,Large,966277,824.16,"Property Management; Advice, Surveys & Inspections",Administration
Land Registry,Land Registry,28/08/2013,RFS4 - Coventry,Security Expenses,Carillion Services Ltd,Large,966277,385.2,Security Expenses,Administration
Land Registry,Land Registry,28/08/2013,Fylde Office,Security Expenses,Carillion Services Ltd,Large,966277,2606.37,Security Expenses,Administration
Land Registry,Land Registry,28/08/2013,Durham Office,FF&F:Maintenance,Carillion Services Ltd,Large,966277,182.32,FF&F:Maintenance,Administration
Land Registry,Land Registry,28/08/2013,Weymouth Office,Gas,Carillion Services Ltd,Large,966277,485.65,Gas,Administration
Land Registry,Land Registry,28/08/2013,RFS1 - Telford,Gas,Carillion Services Ltd,Large,966277,311.25,Gas,Administration
Land Registry,Land Registry,28/08/2013,Telford Office,Gas,Carillion Services Ltd,Large,966277,1518.1,Gas,Administration
Land Registry,Land Registry,28/08/2013,Telford Office,Electricity,Carillion Services Ltd,Large,966277,4932.08,Electricity,Administration
Land Registry,Land Registry,28/08/2013,Birkenhead Office,Gas,Carillion Services Ltd,Large,966277,455.7,Gas,Administration
Land Registry,Land Registry,28/08/2013,Birkenhead Office,Office Cleaning Expenses,Carillion Services Ltd,Large,966277,5908.42,Office Cleaning Expenses,Administration
Land Registry,Land Registry,28/08/2013,Birkenhead Office,Electricity,Carillion Services Ltd,Large,966277,3046.37,Electricity,Administration
Land Registry,Land Registry,28/08/2013,Wales Office,Gas,Carillion Services Ltd,Large,966277,266.41,Gas,Administration
Land Registry,Land Registry,28/08/2013,Weymouth Office,Waste Disposal,Carillion Services Ltd,Large,966277,221.17,Waste Disposal,Administration
Land Registry,Land Registry,28/08/2013,Wales Office,Electricity,Carillion Services Ltd,Large,966277,4298.01,Electricity,Administration
Land Registry,Land Registry,28/08/2013,Croydon Office,Security Expenses,Carillion Services Ltd,Large,966277,9371.34,Security Expenses,Administration
Land Registry,Land Registry,28/08/2013,Croydon Office,FF&F:Maintenance,Carillion Services Ltd,Large,966277,182.32,FF&F:Maintenance,Administration
Land Registry,Land Registry,28/08/2013,Hull Office,Electricity,Carillion Services Ltd,Large,966277,5294.28,Electricity,Administration
Land Registry,Land Registry,28/08/2013,Telford Office,Water,Carillion Services Ltd,Large,966277,2430.78,Water,Administration
Land Registry,Land Registry,28/08/2013,Fylde Office,Electricity,Carillion Services Ltd,Large,966277,3832.58,Electricity,Administration
Land Registry,Land Registry,28/08/2013,Durham Office,Electricity,Carillion Services Ltd,Large,966277,4035.53,Electricity,Administration
Land Registry,Land Registry,28/08/2013,Birkenhead Office,Security Expenses,Carillion Services Ltd,Large,966277,3251.88,Security Expenses,Administration
Land Registry,Land Registry,28/08/2013,Durham Office,Gas,Carillion Services Ltd,Large,966277,471.57,Gas,Administration
Land Registry,Land Registry,28/08/2013,Coventry Office,Electricity,Carillion Services Ltd,Large,966277,5324.28,Electricity,Administration
Land Registry,Land Registry,28/08/2013,Coventry Office,FF&F:Maintenance,Carillion Services Ltd,Large,966277,182.32,FF&F:Maintenance,Administration
Land Registry,Land Registry,28/08/2013,Coventry Office,Pest Control,Carillion Services Ltd,Large,966277,53.17,Pest Control,Administration
Land Registry,Land Registry,28/08/2013,Leicester Office,Gas,Carillion Services Ltd,Large,966277,780.77,Gas,Administration
Land Registry,Land Registry,28/08/2013,Weymouth Office,Property Maintenance,Carillion Services Ltd,Large,966277,2655.24,Property Maintenance,Administration
Land Registry,Land Registry,28/08/2013,Fylde Office,Pest Control,Carillion Services Ltd,Large,966277,39.44,Pest Control,Administration
Land Registry,Land Registry,28/08/2013,Hull Office,Water,Carillion Services Ltd,Large,966277,284.03,Water,Administration
Land Registry,Land Registry,28/08/2013,RFS1 - Telford,Electricity,Carillion Services Ltd,Large,966277,31.8,Electricity,Administration
Land Registry,Land Registry,28/08/2013,Coventry Office,Gas,Carillion Services Ltd,Large,966277,989.92,Gas,Administration
Land Registry,Land Registry,28/08/2013,Leicester Office,Electricity,Carillion Services Ltd,Large,966277,3041.48,Electricity,Administration
Land Registry,Land Registry,28/08/2013,Wales Office,Security Expenses,Carillion Services Ltd,Large,966277,2906.31,Security Expenses,Administration
Land Registry,Land Registry,28/08/2013,Gloucester Office,Gas,Carillion Services Ltd,Large,966277,332.96,Gas,Administration
Land Registry,Land Registry,28/08/2013,Hull Office,Gas,Carillion Services Ltd,Large,966277,1154.41,Gas,Administration
Land Registry,Land Registry,28/08/2013,RFS5 - Durham Belmont,Gas,Carillion Services Ltd,Large,966277,245.93,Gas,Administration
Land Registry,Land Registry,28/08/2013,Fylde Office,Gas,Carillion Services Ltd,Large,966277,864.98,Gas,Administration
Land Registry,Land Registry,28/08/2013,Birkenhead Office,Property Maintenance,Carillion Services Ltd,Large,966277,4899,Property Maintenance,Administration
Land Registry,Land Registry,28/08/2013,Durham Office,Security Expenses,Carillion Services Ltd,Large,966277,3465.83,Security Expenses,Administration
Land Registry,Land Registry,28/08/2013,Coventry Office,Waste Disposal,Carillion Services Ltd,Large,966277,348.33,Waste Disposal,Administration
Land Registry,Land Registry,28/08/2013,Fylde Office,FF&F:Maintenance,Carillion Services Ltd,Large,966277,182.32,FF&F:Maintenance,Administration
Land Registry,Land Registry,28/08/2013,Weymouth Office,Electricity,Carillion Services Ltd,Large,966277,3072.35,Electricity,Administration
Land Registry,Land Registry,28/08/2013,Coventry Office,Water,Carillion Services Ltd,Large,966277,1566.74,Water,Administration
Land Registry,Land Registry,28/08/2013,Telford Office,Office Cleaning Expenses,Carillion Services Ltd,Large,966277,5307.13,Office Cleaning Expenses,Administration
Land Registry,Land Registry,28/08/2013,Gloucester Office,Water,Carillion Services Ltd,Large,966277,1826.09,Water,Administration
Land Registry,Land Registry,28/08/2013,Gloucester Office,Electricity,Carillion Services Ltd,Large,966277,4518.63,Electricity,Administration
Land Registry,Land Registry,28/08/2013,Wales Office,Waste Disposal,Carillion Services Ltd,Large,966277,519.08,Waste Disposal,Administration
Land Registry,Land Registry,28/08/2013,Croydon Office,Property Maintenance,Carillion Services Ltd,Large,966277,7176.27,Property Maintenance,Administration
Land Registry,Land Registry,28/08/2013,Croydon Office,Electricity,Carillion Services Ltd,Large,966277,6142.5,Electricity,Administration
Land Registry,Land Registry,28/08/2013,Croydon Office,Gas,Carillion Services Ltd,Large,966277,820.29,Gas,Administration
Land Registry,Land Registry,28/08/2013,Croydon Office,Vending Machine Consumables & Repairs,Carillion Services Ltd,Large,966277,189.13,Vending Machine Consumables & Repairs,Administration
Land Registry,Land Registry,28/08/2013,Croydon Office,Waste Disposal,Carillion Services Ltd,Large,966277,242.92,Waste Disposal,Administration
Land Registry,Land Registry,28/08/2013,Gloucester Office,Office Cleaning Expenses,Carillion Services Ltd,Large,966277,6016.23,Office Cleaning Expenses,Administration
Land Registry,Land Registry,28/08/2013,Gloucester Office,Waste Disposal,Carillion Services Ltd,Large,966277,232.75,Waste Disposal,Administration
Land Registry,Land Registry,28/08/2013,Gloucester Office,Security Expenses,Carillion Services Ltd,Large,966277,10518.32,Security Expenses,Administration
Land Registry,Land Registry,28/08/2013,Gloucester Office,FF&F:Maintenance,Carillion Services Ltd,Large,966277,182.32,FF&F:Maintenance,Administration
Land Registry,Land Registry,28/08/2013,Leicester Office,FF&F:Maintenance,Carillion Services Ltd,Large,966277,273.48,FF&F:Maintenance,Administration
Land Registry,Land Registry,28/08/2013,Croydon Office,Office Cleaning Expenses,Carillion Services Ltd,Large,966277,6172.4,Office Cleaning Expenses,Administration
Land Registry,Land Registry,28/08/2013,Durham Office,Pest Control,Carillion Services Ltd,Large,966277,48.8,Pest Control,Administration
Land Registry,Land Registry,28/08/2013,Gloucester Office,Property Maintenance,Carillion Services Ltd,Large,966277,3244.03,Property Maintenance,Administration
Land Registry,Land Registry,28/08/2013,Birkenhead Office,Waste Disposal,Carillion Services Ltd,Large,966277,629.75,Waste Disposal,Administration
Land Registry,Land Registry,28/08/2013,Peterborough Office,Vending Machine Consumables & Repairs,Carillion Services Ltd,Large,966277,15.95,Vending Machine Consumables & Repairs,Administration
Land Registry,Land Registry,28/08/2013,Hull Office,Grounds Maintenance,Carillion Services Ltd,Large,966277,664.91,Grounds Maintenance,Administration
Land Registry,Land Registry,28/08/2013,Durham Office,Property Maintenance,Carillion Services Ltd,Large,966277,5736.2,Property Maintenance,Administration
Land Registry,Land Registry,28/08/2013,Durham Office,Office Cleaning Expenses,Carillion Services Ltd,Large,966277,8726.76,Office Cleaning Expenses,Administration
Land Registry,Land Registry,28/08/2013,Durham Office,Waste Disposal,Carillion Services Ltd,Large,966277,365.5,Waste Disposal,Administration
Land Registry,Land Registry,28/08/2013,Weymouth Office,Office Cleaning Expenses,Carillion Services Ltd,Large,966277,4117.29,Office Cleaning Expenses,Administration
Land Registry,Land Registry,28/08/2013,Weymouth Office,Pest Control,Carillion Services Ltd,Large,966277,66.89,Pest Control,Administration
Land Registry,Land Registry,28/08/2013,Weymouth Office,Security Expenses,Carillion Services Ltd,Large,966277,3129.65,Security Expenses,Administration
Land Registry,Land Registry,28/08/2013,Weymouth Office,FF&F:Maintenance,Carillion Services Ltd,Large,966277,273.48,FF&F:Maintenance,Administration
Land Registry,Land Registry,28/08/2013,Peterborough Office,Property Maintenance,Carillion Services Ltd,Large,966277,4768.08,Property Maintenance,Administration
Land Registry,Land Registry,28/08/2013,Peterborough Office,Office Cleaning Expenses,Carillion Services Ltd,Large,966277,-18154.54,Office Cleaning Expenses,Administration
Land Registry,Land Registry,28/08/2013,Peterborough Office,Pest Control,Carillion Services Ltd,Large,966277,-16.29,Pest Control,Administration
Land Registry,Land Registry,28/08/2013,Peterborough Office,Waste Disposal,Carillion Services Ltd,Large,966277,-728.75,Waste Disposal,Administration
Land Registry,Land Registry,28/08/2013,Peterborough Office,Security Expenses,Carillion Services Ltd,Large,966277,-9688.41,Security Expenses,Administration
Land Registry,Land Registry,28/08/2013,Peterborough Office,FF&F:Maintenance,Carillion Services Ltd,Large,966277,-546.96,FF&F:Maintenance,Administration
Land Registry,Land Registry,28/08/2013,Telford Office,Property Maintenance,Carillion Services Ltd,Large,966277,5659.25,Property Maintenance,Administration
Land Registry,Land Registry,28/08/2013,Telford Office,Pest Control,Carillion Services Ltd,Large,966277,44.77,Pest Control,Administration
Land Registry,Land Registry,28/08/2013,Telford Office,Waste Disposal,Carillion Services Ltd,Large,966277,278.25,Waste Disposal,Administration
Land Registry,Land Registry,28/08/2013,Telford Office,Security Expenses,Carillion Services Ltd,Large,966277,2847.69,Security Expenses,Administration
Land Registry,Land Registry,28/08/2013,Telford Office,FF&F:Maintenance,Carillion Services Ltd,Large,966277,182.32,FF&F:Maintenance,Administration
Land Registry,Land Registry,28/08/2013,Coventry Office,Property Maintenance,Carillion Services Ltd,Large,966277,10787.56,Property Maintenance,Administration
Land Registry,Land Registry,28/08/2013,Coventry Office,Office Cleaning Expenses,Carillion Services Ltd,Large,966277,7700.55,Office Cleaning Expenses,Administration
Land Registry,Land Registry,28/08/2013,Coventry Office,Vending Machine Consumables & Repairs,Carillion Services Ltd,Large,966277,222.09,Vending Machine Consumables & Repairs,Administration
Land Registry,Land Registry,28/08/2013,Coventry Office,Security Expenses,Carillion Services Ltd,Large,966277,7931.49,Security Expenses,Administration
Land Registry,Land Registry,28/08/2013,Hull Office,Property Maintenance,Carillion Services Ltd,Large,966277,5863.87,Property Maintenance,Administration
Land Registry,Land Registry,28/08/2013,Hull Office,Office Cleaning Expenses,Carillion Services Ltd,Large,966277,5297.63,Office Cleaning Expenses,Administration
Land Registry,Land Registry,28/08/2013,Hull Office,Pest Control,Carillion Services Ltd,Large,966277,49.84,Pest Control,Administration
Land Registry,Land Registry,28/08/2013,Hull Office,Vending Machine Consumables & Repairs,Carillion Services Ltd,Large,966277,215.2,Vending Machine Consumables & Repairs,Administration
Land Registry,Land Registry,28/08/2013,Hull Office,Waste Disposal,Carillion Services Ltd,Large,966277,139.08,Waste Disposal,Administration
Land Registry,Land Registry,28/08/2013,Hull Office,Security Expenses,Carillion Services Ltd,Large,966277,3234.32,Security Expenses,Administration
Land Registry,Land Registry,28/08/2013,Hull Office,FF&F:Maintenance,Carillion Services Ltd,Large,966277,182.32,FF&F:Maintenance,Administration
Land Registry,Land Registry,28/08/2013,Leicester Office,Property Maintenance,Carillion Services Ltd,Large,966277,8324.54,Property Maintenance,Administration
Land Registry,Land Registry,28/08/2013,Leicester Office,Office Cleaning Expenses,Carillion Services Ltd,Large,966277,3918.99,Office Cleaning Expenses,Administration
Land Registry,Land Registry,28/08/2013,Leicester Office,Vending Machine Consumables & Repairs,Carillion Services Ltd,Large,966277,157.74,Vending Machine Consumables & Repairs,Administration
Land Registry,Land Registry,28/08/2013,Leicester Office,Waste Disposal,Carillion Services Ltd,Large,966277,331.58,Waste Disposal,Administration
Land Registry,Land Registry,28/08/2013,Leicester Office,Security Expenses,Carillion Services Ltd,Large,966277,2741.88,Security Expenses,Administration
Land Registry,Land Registry,28/08/2013,Wales Office,Property Maintenance,Carillion Services Ltd,Large,966277,4901.77,Property Maintenance,Administration
Land Registry,Land Registry,28/08/2013,Wales Office,Water,Carillion Services Ltd,Large,966277,3331.19,Water,Administration
Land Registry,Land Registry,28/08/2013,Wales Office,Office Cleaning Expenses,Carillion Services Ltd,Large,966277,4931.9,Office Cleaning Expenses,Administration
Land Registry,Land Registry,28/08/2013,Wales Office,Pest Control,Carillion Services Ltd,Large,966277,59.11,Pest Control,Administration
Land Registry,Land Registry,28/08/2013,Wales Office,FF&F:Maintenance,Carillion Services Ltd,Large,966277,364.64,FF&F:Maintenance,Administration
Land Registry,Land Registry,28/08/2013,Nottingham Office,Property Maintenance,Carillion Services Ltd,Large,966277,16238.83,Property Maintenance,Administration
Land Registry,Land Registry,28/08/2013,Nottingham Office,Electricity,Carillion Services Ltd,Large,966277,7783.93,Electricity,Administration
Land Registry,Land Registry,28/08/2013,Nottingham Office,Gas,Carillion Services Ltd,Large,966277,385.91,Gas,Administration
Land Registry,Land Registry,28/08/2013,Nottingham Office,Water,Carillion Services Ltd,Large,966277,37766.76,Water,Administration
Land Registry,Land Registry,28/08/2013,Nottingham Office,Office Cleaning Expenses,Carillion Services Ltd,Large,966277,-9762.75,Office Cleaning Expenses,Administration
Land Registry,Land Registry,28/08/2013,Nottingham Office,Pest Control,Carillion Services Ltd,Large,966277,513.33,Pest Control,Administration
Land Registry,Land Registry,28/08/2013,Nottingham Office,Waste Disposal,Carillion Services Ltd,Large,966277,-1207.59,Waste Disposal,Administration
Land Registry,Land Registry,28/08/2013,Nottingham Office,Security Expenses,Carillion Services Ltd,Large,966277,-1662.6,Security Expenses,Administration
Land Registry,Land Registry,28/08/2013,Birkenhead Office,Grounds Maintenance,Carillion Services Ltd,Large,966277,385.44,Grounds Maintenance,Administration
Land Registry,Land Registry,28/08/2013,Birkenhead Office,Water,Carillion Services Ltd,Large,966277,4706.06,Water,Administration
Land Registry,Land Registry,28/08/2013,Birkenhead Office,Pest Control,Carillion Services Ltd,Large,966277,41.71,Pest Control,Administration
Land Registry,Land Registry,28/08/2013,Birkenhead Office,FF&F:Maintenance,Carillion Services Ltd,Large,966277,182.32,FF&F:Maintenance,Administration
Land Registry,Land Registry,28/08/2013,Fylde Office,Property Maintenance,Carillion Services Ltd,Large,966277,3688.68,Property Maintenance,Administration
Land Registry,Land Registry,28/08/2013,Fylde Office,Water,Carillion Services Ltd,Large,966277,5481.13,Water,Administration
Land Registry,Land Registry,28/08/2013,Fylde Office,Office Cleaning Expenses,Carillion Services Ltd,Large,966277,5382.73,Office Cleaning Expenses,Administration
Land Registry,Land Registry,28/08/2013,Fylde Office,Vending Machine Consumables & Repairs,Carillion Services Ltd,Large,966277,218.76,Vending Machine Consumables & Repairs,Administration
Land Registry,Land Registry,28/08/2013,Fylde Office,Waste Disposal,Carillion Services Ltd,Large,966277,110.83,Waste Disposal,Administration
Land Registry,Land Registry,28/08/2013,RFS5 - Durham Belmont,Property Maintenance,Carillion Services Ltd,Large,966277,5187.41,Property Maintenance,Administration
Land Registry,Land Registry,28/08/2013,RFS5 - Durham Belmont,Electricity,Carillion Services Ltd,Large,966277,-103.76,Electricity,Administration
Land Registry,Land Registry,28/08/2013,RFS5 - Durham Belmont,Water,Carillion Services Ltd,Large,966277,3509.94,Water,Administration
Land Registry,Land Registry,28/08/2013,RFS4 - Coventry,Property Maintenance,Carillion Services Ltd,Large,966277,55.24,Property Maintenance,Administration
Land Registry,Land Registry,28/08/2013,RFS4 - Coventry,Office Cleaning Expenses,Carillion Services Ltd,Large,966277,247.47,Office Cleaning Expenses,Administration
Land Registry,Land Registry,28/08/2013,RFS1 - Telford,Property Maintenance,Carillion Services Ltd,Large,966277,1696.89,Property Maintenance,Administration
Land Registry,Land Registry,28/08/2013,RFS1 - Telford,Water,Carillion Services Ltd,Large,966277,684.04,Water,Administration
Land Registry,Land Registry,28/08/2013,RFS8 - Birkenhead,Office Cleaning Expenses,Carillion Services Ltd,Large,966277,7.51,Office Cleaning Expenses,Administration
Land Registry,Land Registry,28/08/2013,Weymouth Office,Vending Machine Consumables & Repairs,Carillion Services Ltd,Large,966277,120.1,Vending Machine Consumables & Repairs,Administration
Land Registry,Land Registry,28/08/2013,Fylde Office,Grounds Maintenance,Carillion Services Ltd,Large,966277,1374.54,Grounds Maintenance,Administration
Land Registry,Land Registry,28/08/2013,Leicester Office,Pest Control,Carillion Services Ltd,Large,966277,55.62,Pest Control,Administration
Land Registry,Land Registry,28/08/2013,Croydon Office,Pest Control,Carillion Services Ltd,Large,966277,40.05,Pest Control,Administration
Land Registry,Land Registry,28/08/2013,Telford Office,Grounds Maintenance,Carillion Services Ltd,Large,966277,1241.32,Grounds Maintenance,Administration
Land Registry,Land Registry,28/08/2013,Weymouth Office,Grounds Maintenance,Carillion Services Ltd,Large,966277,720.17,Grounds Maintenance,Administration
Land Registry,Land Registry,28/08/2013,Leicester Office,Grounds Maintenance,Carillion Services Ltd,Large,966277,236.56,Grounds Maintenance,Administration
Land Registry,Land Registry,28/08/2013,Gloucester Office,Grounds Maintenance,Carillion Services Ltd,Large,966277,671.75,Grounds Maintenance,Administration
Land Registry,Land Registry,28/08/2013,Durham Office,Grounds Maintenance,Carillion Services Ltd,Large,966277,952.36,Grounds Maintenance,Administration
Land Registry,Land Registry,28/08/2013,Gloucester Office,Pest Control,Carillion Services Ltd,Large,966277,46.52,Pest Control,Administration
Land Registry,Land Registry,28/08/2013,Gloucester Computer Centre,Electricity,Carillion Services Ltd,Large,966277,27226.6,Electricity,Administration
Land Registry,Land Registry,28/08/2013,Gloucester Computer Centre,Security Expenses,Carillion Services Ltd,Large,966277,8269.97,Security Expenses,Administration
Land Registry,Land Registry,28/08/2013,Gloucester Computer Centre,Office Cleaning Expenses,Carillion Services Ltd,Large,966277,10.63,Office Cleaning Expenses,Administration
Land Registry,Land Registry,28/08/2013,Nottingham Office,Grounds Maintenance,Carillion Services Ltd,Large,966277,-3932.47,Grounds Maintenance,Administration
Land Registry,Land Registry,28/08/2013,Gloucester Computer Centre,Gas,Carillion Services Ltd,Large,966277,61.94,Gas,Administration
Land Registry,Land Registry,28/08/2013,Gloucester Computer Centre,Waste Disposal,Carillion Services Ltd,Large,966277,92.67,Waste Disposal,Administration
Land Registry,Land Registry,28/08/2013,Gloucester Computer Centre,Property Maintenance,Carillion Services Ltd,Large,966277,6819.98,Property Maintenance,Administration
Land Registry,Land Registry,28/08/2013,RFS15 - Plymouth Drakes Hill Court,Electricity,Carillion Services Ltd,Large,966277,2015.06,Electricity,Administration
Land Registry,Land Registry,28/08/2013,RFS15 - Plymouth Drakes Hill Court,Gas,Carillion Services Ltd,Large,966277,555.65,Gas,Administration
Land Registry,Land Registry,28/08/2013,RFS15 - Plymouth Drakes Hill Court,Water,Carillion Services Ltd,Large,966277,28.72,Water,Administration
Land Registry,Land Registry,28/08/2013,RFS15 - Plymouth Drakes Hill Court,Office Cleaning Expenses,Carillion Services Ltd,Large,966277,519.28,Office Cleaning Expenses,Administration
Land Registry,Land Registry,28/08/2013,Coventry Office,Grounds Maintenance,Carillion Services Ltd,Large,966277,787.63,Grounds Maintenance,Administration
Land Registry,Land Registry,28/08/2013,Gloucester Office,Vending Machine Consumables & Repairs,Carillion Services Ltd,Large,966277,729.73,Vending Machine Consumables & Repairs,Administration
Land Registry,Land Registry,28/08/2013,Wales Office,Vending Machine Consumables & Repairs,Carillion Services Ltd,Large,966277,182.05,Vending Machine Consumables & Repairs,Administration
Land Registry,Land Registry,28/08/2013,Wales Office,Grounds Maintenance,Carillion Services Ltd,Large,966277,530.47,Grounds Maintenance,Administration
Land Registry,Land Registry,28/08/2013,Gloucester Computer Centre,Pest Control,Carillion Services Ltd,Large,966277,28.51,Pest Control,Administration
Land Registry,Land Registry,28/08/2013,RFS15 - Plymouth Drakes Hill Court,FF&F:Maintenance,Carillion Services Ltd,Large,966277,91.16,FF&F:Maintenance,Administration
Land Registry,Land Registry,28/08/2013,RFS15 - Plymouth Drakes Hill Court,Waste Disposal,Carillion Services Ltd,Large,966277,19.92,Waste Disposal,Administration
Land Registry,Land Registry,28/08/2013,RFS15 - Plymouth Drakes Hill Court,Property Maintenance,Carillion Services Ltd,Large,966277,3354.8,Property Maintenance,Administration
Land Registry,Land Registry,28/08/2013,RFS15 - Plymouth Drakes Hill Court,Pest Control,Carillion Services Ltd,Large,966277,540.84,Pest Control,Administration
Land Registry,Land Registry,28/08/2013,Telford Office,Vending Machine Consumables & Repairs,Carillion Services Ltd,Large,966277,226.96,Vending Machine Consumables & Repairs,Administration
Land Registry,Land Registry,28/08/2013,Gloucester Computer Centre,FF&F:Maintenance,Carillion Services Ltd,Large,966277,182.32,FF&F:Maintenance,Administration
Land Registry,Land Registry,28/08/2013,Croydon Office,Grounds Maintenance,Carillion Services Ltd,Large,966277,80.86,Grounds Maintenance,Administration
Land Registry,Land Registry,28/08/2013,Gloucester Computer Centre,Grounds Maintenance,Carillion Services Ltd,Large,966277,157.07,Grounds Maintenance,Administration
Land Registry,Land Registry,28/08/2013,Peterborough Office,Grounds Maintenance,Carillion Services Ltd,Large,966277,-471.21,Grounds Maintenance,Administration
Land Registry,Land Registry,28/08/2013,RFS15 - Plymouth Drakes Hill Court,Grounds Maintenance,Carillion Services Ltd,Large,966277,295.91,Grounds Maintenance,Administration
Land Registry,Land Registry,28/08/2013,Nottingham Office,Vending Machine Consumables & Repairs,Carillion Services Ltd,Large,966277,500,Vending Machine Consumables & Repairs,Administration
Land Registry,Land Registry,28/08/2013,Governance & Policy,FM Managed Services,Carillion Services Ltd,Large,966277,11114.05,Facilities Managed Service,Administration
Land Registry,Land Registry,28/08/2013,Governance & Policy,FM Ext Helpdesk,Carillion Services Ltd,Large,966277,1253.51,Facilities External Help Desk,Administration
Land Registry,Land Registry,28/08/2013,RFS15 - Plymouth Drakes Hill Court,FM Managed Services,Carillion Services Ltd,Large,966277,668.43,Facilities Managed Service,Administration
Land Registry,Land Registry,28/08/2013,RFS15 - Plymouth Drakes Hill Court,FM Ext Helpdesk,Carillion Services Ltd,Large,966277,117.9,Facilities External Help Desk,Administration
Land Registry,Land Registry,28/08/2013,Weymouth Office,FM Managed Services,Carillion Services Ltd,Large,966277,3947.53,Facilities Managed Service,Administration
Land Registry,Land Registry,28/08/2013,Weymouth Office,FM Ext Helpdesk,Carillion Services Ltd,Large,966277,303.73,Facilities External Help Desk,Administration
Land Registry,Land Registry,28/08/2013,Croydon Office,FM Managed Services,Carillion Services Ltd,Large,966277,8081.41,Facilities Managed Service,Administration
Land Registry,Land Registry,28/08/2013,Croydon Office,FM Ext Helpdesk,Carillion Services Ltd,Large,966277,473.24,Facilities External Help Desk,Administration
Land Registry,Land Registry,28/08/2013,Wales Office,FM Managed Services,Carillion Services Ltd,Large,966277,7566.03,Facilities Managed Service,Administration
Land Registry,Land Registry,28/08/2013,Wales Office,FM Ext Helpdesk,Carillion Services Ltd,Large,966277,373.63,Facilities External Help Desk,Administration
Land Registry,Land Registry,28/08/2013,Coventry Office,FM Managed Services,Carillion Services Ltd,Large,966277,7875.53,Facilities Managed Service,Administration
Land Registry,Land Registry,28/08/2013,Coventry Office,FM Ext Helpdesk,Carillion Services Ltd,Large,966277,797.74,Facilities External Help Desk,Administration
Land Registry,Land Registry,28/08/2013,Gloucester Office,FM Managed Services,Carillion Services Ltd,Large,966277,4179.51,Facilities Managed Service,Administration
Land Registry,Land Registry,28/08/2013,Gloucester Office,FM Ext Helpdesk,Carillion Services Ltd,Large,966277,494.21,Facilities External Help Desk,Administration
Land Registry,Land Registry,28/08/2013,Gloucester Computer Centre,FM Managed Services,Carillion Services Ltd,Large,966277,1859.04,Facilities Managed Service,Administration
Land Registry,Land Registry,28/08/2013,Gloucester Computer Centre,FM Ext Helpdesk,Carillion Services Ltd,Large,966277,458.47,Facilities External Help Desk,Administration
Land Registry,Land Registry,28/08/2013,Leicester Office,FM Managed Services,Carillion Services Ltd,Large,966277,3728.36,Facilities Managed Service,Administration
Land Registry,Land Registry,28/08/2013,Leicester Office,FM Ext Helpdesk,Carillion Services Ltd,Large,966277,431.64,Facilities External Help Desk,Administration
Land Registry,Land Registry,28/08/2013,Nottingham Office,FM Managed Services,Carillion Services Ltd,Large,966277,9922.54,Facilities Managed Service,Administration
Land Registry,Land Registry,28/08/2013,Nottingham Office,FM Ext Helpdesk,Carillion Services Ltd,Large,966277,1409.74,Facilities External Help Desk,Administration
Land Registry,Land Registry,28/08/2013,Peterborough Office,FM Managed Services,Carillion Services Ltd,Large,966277,4092.01,Facilities Managed Service,Administration
Land Registry,Land Registry,28/08/2013,Peterborough Office,FM Ext Helpdesk,Carillion Services Ltd,Large,966277,465.62,Facilities External Help Desk,Administration
Land Registry,Land Registry,28/08/2013,Telford Office,FM Managed Services,Carillion Services Ltd,Large,966277,3680.07,Facilities Managed Service,Administration
Land Registry,Land Registry,28/08/2013,Telford Office,FM Ext Helpdesk,Carillion Services Ltd,Large,966277,417.21,Facilities External Help Desk,Administration
Land Registry,Land Registry,28/08/2013,RFS1 - Telford,FM Managed Services,Carillion Services Ltd,Large,966277,347.6,Facilities Managed Service,Administration
Land Registry,Land Registry,28/08/2013,RFS1 - Telford,FM Ext Helpdesk,Carillion Services Ltd,Large,966277,103.92,Facilities External Help Desk,Administration
Land Registry,Land Registry,28/08/2013,Birkenhead Office,FM Managed Services,Carillion Services Ltd,Large,966277,4806.84,Facilities Managed Service,Administration
Land Registry,Land Registry,28/08/2013,Birkenhead Office,FM Ext Helpdesk,Carillion Services Ltd,Large,966277,393.15,Facilities External Help Desk,Administration
Land Registry,Land Registry,28/08/2013,Durham Office,FM Managed Services,Carillion Services Ltd,Large,966277,7669.41,Facilities Managed Service,Administration
Land Registry,Land Registry,28/08/2013,Durham Office,FM Ext Helpdesk,Carillion Services Ltd,Large,966277,493.43,Facilities External Help Desk,Administration
Land Registry,Land Registry,28/08/2013,Fylde Office,FM Managed Services,Carillion Services Ltd,Large,966277,6919.51,Facilities Managed Service,Administration
Land Registry,Land Registry,28/08/2013,Fylde Office,FM Ext Helpdesk,Carillion Services Ltd,Large,966277,343.15,Facilities External Help Desk,Administration
Land Registry,Land Registry,28/08/2013,Hull Office,FM Managed Services,Carillion Services Ltd,Large,966277,4208.83,Facilities Managed Service,Administration
Land Registry,Land Registry,28/08/2013,Hull Office,FM Ext Helpdesk,Carillion Services Ltd,Large,966277,385.63,Facilities External Help Desk,Administration
Land Registry,Land Registry,28/08/2013,RFS4 - Coventry,FM Managed Services,Carillion Services Ltd,Large,966277,13.61,Facilities Managed Service,Administration
Land Registry,Land Registry,28/08/2013,RFS4 - Coventry,FM Ext Helpdesk,Carillion Services Ltd,Large,966277,7.09,Facilities External Help Desk,Administration
Land Registry,Land Registry,28/08/2013,Governance & Policy,Electricity,Carillion Services Ltd,Large,966277,42411.69,Electricity,Administration
Land Registry,Land Registry,28/08/2013,Governance & Policy,Gas,Carillion Services Ltd,Large,966277,850.48,Gas,Administration
Land Registry,Land Registry,28/08/2013,Governance & Policy,Water,Carillion Services Ltd,Large,966277,4231.54,Water,Administration
Land Registry,Land Registry,28/08/2013,Governance & Policy,Pest Control,Carillion Services Ltd,Large,966277,522.57,Pest Control,Administration
Land Registry,Land Registry,28/08/2013,Governance & Policy,Office Cleaning Expenses,Carillion Services Ltd,Large,966277,9275.7,Office Cleaning Expenses,Administration
Land Registry,Land Registry,28/08/2013,Governance & Policy,Security Expenses,Carillion Services Ltd,Large,966277,22575.17,Security Expenses,Administration
Land Registry,Land Registry,28/08/2013,Governance & Policy,Property Maintenance,Carillion Services Ltd,Large,966277,15413.84,Property Maintenance,Administration
Land Registry,Land Registry,28/08/2013,Governance & Policy,Grounds Maintenance,Carillion Services Ltd,Large,966277,1931.72,Grounds Maintenance,Administration
Land Registry,Land Registry,28/08/2013,Governance & Policy,FF&F:Maintenance,Carillion Services Ltd,Large,966277,546.96,FF&F:Maintenance,Administration
Land Registry,Land Registry,28/08/2013,Peterborough Office,Gas,Carillion Services Ltd,Large,966277,1341.07,Gas,Administration
Land Registry,Land Registry,28/08/2013,Dir: HR,Gas,Carillion Services Ltd,Large,966277,360.98,Gas,Administration
Land Registry,Land Registry,28/08/2013,Dir: Finance,Gas,Carillion Services Ltd,Large,966277,207.53,Gas,Administration
Land Registry,Land Registry,28/08/2013,Governance & Policy,Waste Disposal,Carillion Services Ltd,Large,966277,2096,Waste Disposal,Administration
Land Registry,Land Registry,28/08/2013,Birkenhead Office,Vending Machine Consumables & Repairs,Carillion Services Ltd,Large,966277,737.23,Vending Machine Consumables & Repairs,Administration
Land Registry,Land Registry,28/08/2013,RFS8 - Birkenhead,Vending Machine Consumables & Repairs,Carillion Services Ltd,Large,966277,54.62,Vending Machine Consumables & Repairs,Administration
Land Registry,Land Registry,28/08/2013,Dir: HR,Electricity,Carillion Services Ltd,Large,966277,1297.4,Electricity,Administration
Land Registry,Land Registry,28/08/2013,Dir: HR,Waste Disposal,Carillion Services Ltd,Large,966277,60.42,Waste Disposal,Administration
Land Registry,Land Registry,28/08/2013,Dir: HR,Security Expenses,Carillion Services Ltd,Large,966277,935.41,Security Expenses,Administration
Land Registry,Land Registry,28/08/2013,Dir: HR,Property Management; Other Fees,Carillion Services Ltd,Large,966277,1527.96,Property Management; Other Fees,Administration
Land Registry,Land Registry,28/08/2013,Dir: Finance,"Property Management; Advice, Surveys & Inspections",Carillion Services Ltd,Large,966277,760,"Property Management; Advice, Surveys & Inspections",Administration
Land Registry,Land Registry,28/08/2013,Dir: Finance,Electricity,Carillion Services Ltd,Large,966277,864.94,Electricity,Administration
Land Registry,Land Registry,28/08/2013,IS Service Delivery,Computer Equipment Maintenance,IBM United Kingdom Ltd,Large,966281,49258.58,Computer Equipment Maintenance,Administration
Land Registry,Land Registry,28/08/2013,Peterborough Office,Rates Payable,Peterborough City Council,Large,473374,2661,Rates Payable,Administration
Land Registry,Land Registry,28/08/2013,Peterborough Office,Rates Payable,Peterborough City Council,Large,473374,2496,Rates Payable,Administration
Land Registry,Land Registry,28/08/2013,Peterborough Office,Rates Payable,Peterborough City Council,Large,473374,2732,Rates Payable,Administration
Land Registry,Land Registry,28/08/2013,Governance & Policy,Rates Payable,South Hams District Council,Large,473376,4616,Rates Payable,Administration
Land Registry,Land Registry,28/08/2013,Peterborough Office,Rates Payable,Peterborough City Council,Large,473374,2591,Rates Payable,Administration
Land Registry,Land Registry,28/08/2013,Governance & Policy,Rates Payable,City of Plymouth,Large,473369,17026.1,Rates Payable,Administration
Land Registry,Land Registry,30/08/2013,IS Service Delivery,DITI Impact Change Controls Only,Steria Limited,Large,966939,23225.1,IT Managed Service Change Controls,Administration
Land Registry,Land Registry,30/08/2013,Plymouth Office,Reprographic Copy Costs,Steria Limited,Large,966939,1131.09,Reprographic Copy Costs,Administration
Land Registry,Land Registry,30/08/2013,Telford Office,Reprographic Copy Costs,Steria Limited,Large,966939,82.44,Reprographic Copy Costs,Administration
Land Registry,Land Registry,30/08/2013,Central Facilities Management Team,"Computer Equipment Purchases <1,000",Steria Limited,Large,966939,225.12,"Computer Equipment Purchases <1,000",Administration
Land Registry,Land Registry,30/08/2013,Wales Office,Reprographic Copy Costs,Steria Limited,Large,966939,725.36,Reprographic Copy Costs,Administration
Land Registry,Land Registry,30/08/2013,Coventry Office,Reprographic Copy Costs,Steria Limited,Large,966939,92.94,Reprographic Copy Costs,Administration
Land Registry,Land Registry,30/08/2013,Durham Office,Reprographic Copy Costs,Steria Limited,Large,966939,522.79,Reprographic Copy Costs,Administration
Land Registry,Land Registry,30/08/2013,IS Service Delivery,"Computer Equipment Purchases <1,000",Steria Limited,Large,966939,2185.78,"Computer Equipment Purchases <1,000",Administration
Land Registry,Land Registry,30/08/2013,Fylde Office,Reprographic Copy Costs,Steria Limited,Large,966939,547.69,Reprographic Copy Costs,Administration
Land Registry,Land Registry,30/08/2013,Peterborough Office,Reprographic Copy Costs,Steria Limited,Large,966939,178.23,Reprographic Copy Costs,Administration
Land Registry,Land Registry,30/08/2013,Croydon Office,Reprographic Copy Costs,Steria Limited,Large,966939,-325.21,Reprographic Copy Costs,Administration
Land Registry,Land Registry,30/08/2013,Gloucester Office,Reprographic Copy Costs,Steria Limited,Large,966939,376.31,Reprographic Copy Costs,Administration
Land Registry,Land Registry,30/08/2013,Leicester Office,Reprographic Copy Costs,Steria Limited,Large,966939,273.29,Reprographic Copy Costs,Administration
Land Registry,Land Registry,30/08/2013,Weymouth Office,Reprographic Copy Costs,Steria Limited,Large,966939,457.93,Reprographic Copy Costs,Administration
Land Registry,Land Registry,30/08/2013,Hull Office,Reprographic Copy Costs,Steria Limited,Large,966939,594.39,Reprographic Copy Costs,Administration
Land Registry,Land Registry,30/08/2013,Nottingham Office,Reprographic Copy Costs,Steria Limited,Large,966939,719.55,Reprographic Copy Costs,Administration
Land Registry,Land Registry,30/08/2013,Birkenhead Office,Reprographic Copy Costs,Steria Limited,Large,966939,788.28,Reprographic Copy Costs,Administration
Land Registry,Land Registry,30/08/2013,IS Service Delivery,Reprographic Copy Costs,Steria Limited,Large,966939,31.98,Reprographic Copy Costs,Administration
Land Registry,Land Registry,30/08/2013,Weymouth Office,FF&F:Removals,Steria Limited,Large,966939,1123.24,FF&F:Removals,Administration
Land Registry,Land Registry,30/08/2013,IS Service Delivery,DITI Printer Managed Service,Steria Limited,Large,966939,67319.66,IT Printer Managed Service,Administration
